bitfinex-derivatives/quotes_SOLF0:USTF0_20260115
["timestamp","ask_amount","ask_price","bid_price","bid_amount"]
[1768500795646,0.0520512,142.22,142.17,25.23980585]
[1768500796043,6.328,142.28,142.2,18.83980585]
[1768500796244,5.27287373,142.27,142.21,25.23980585]
[1768500796445,6.38,142.29,142.21,25.23980585]
[1768500796646,5.27197966,142.28,142.21,25.23980585]
[1768500796843,6.38,142.29,142.21,25.23980585]
[1768500797148,10.58186876,142.28,142.21,25.23980585]
[1768500797349,6.38,142.29,142.21,25.23980585]
[1768500797553,10.58105506,142.28,142.24,0.04520589]
[1768500797850,6.3283,142.27,142.24,0.04520589]
[1768500798044,6.3283,142.27,142.21,25.23980585]
[1768500798241,6.37743304,142.27,142.21,25.23980585]
[1768500799346,0.04913304,142.27,142.21,25.23980585]
[1768500799649,0.04913304,142.27,142.23,18.88578939]
[1768500800546,0.04913304,142.27,142.23,0.04598354]
[1768500800847,0.04913304,142.27,142.21,6.38]
[1768500801250,0.04913304,142.27,142.2,18.83980585]
[1768500801449,0.04913304,142.27,142.2,25.21980585]
[1768500802446,6.83362792,142.27,142.17,19.02660587]
[1768500802642,105.27792792,142.27,142.18,6.36]
[1768500802946,105.22879488,142.27,142.18,6.36]
[1768500803158,6.3301,142.23,142.18,25.38660587]
[1768500803349,6.3301,142.23,142.18,6.36]
[1768500803543,6.3301,142.23,142.16,25.38660587]
[1768500803748,6.3306,142.22,142.16,25.38660587]
[1768500804558,0.05093707,142.2,142.16,25.38660587]
[1768500805858,0.05093707,142.2,142.16,19.02660587]
[1768500806756,6.38243707,142.2,142.16,19.02660587]
[1768500806952,6.38243707,142.2,142.14,6.36]
[1768500807149,0.05093707,142.2,142.14,26.83014473]
[1768500808352,0.05093707,142.2,142.15,20.47014473]
[1768500808748,6.34,142.23,142.15,20.47014473]
[1768500809859,12.6702,142.23,142.16,20.47014473]
[1768500810056,0.04677958,142.2,142.16,20.47014473]
[1768500811447,12.6702,142.23,142.16,20.47014473]
[1768500811656,6.3293,142.25,142.17,20.47014473]
[1768500811858,6.3293,142.25,142.17,20.51819154]
[1768500812162,5.26065292,142.24,142.17,20.47014473]
[1768500812348,6.78449488,142.28,142.17,20.47014473]
[1768500812556,6.3297,142.24,142.17,20.47014473]
[1768500812754,12.6697,142.24,142.17,20.47014473]
[1768500813260,12.6489,142.26,142.17,20.47014473]
[1768500813460,5.26222408,142.25,142.17,20.47014473]
[1768500813654,12.6489,142.26,142.17,20.47014473]
[1768500813856,5.26195776,142.25,142.17,20.47014473]
[1768500814057,6.3289,142.26,142.17,20.47014473]
[1768500814257,5.26113744,142.25,142.17,20.47014473]
[1768500814458,12.6489,142.26,142.18,20.47014473]
[1768500814459,6.3289,142.26,142.18,20.47014473]
[1768500814655,12.6489,142.26,142.18,20.47014473]
[1768500814860,12.6489,142.26,142.2,20.52298242]
[1768500815267,5.26067151,142.25,142.2,0.05283769]
[1768500815460,6.32,142.26,142.2,0.05283769]
[1768500815659,5.26053699,142.25,142.2,0.05283769]
[1768500815962,6.32,142.26,142.2,0.05283769]
[1768500816259,10.59374556,142.25,142.17,20.47014473]
[1768500816470,98.4675,142.23,142.14,20.47014473]
[1768500816764,16.91024365,142.22,142.14,20.47014473]
[1768500816960,5.25844099,142.21,142.14,20.47014473]
[1768500817260,6.32,142.2,142.14,20.47014473]
[1768500817860,6.3314,142.2,142.14,20.47014473]
[1768500818064,0.04762746,142.18,142.14,20.47014473]
[1768500822467,6.3,142.2,142.14,20.47014473]
[1768500822665,6.3,142.2,142.15,20.51471494]
[1768500822862,6.3,142.21,142.15,20.51471494]
[1768500823064,6.3314,142.2,142.15,20.51471494]
[1768500823370,6.3314,142.2,142.15,20.47014473]
[1768500824156,6.3314,142.2,142.16,0.04536801]
[1768500830166,6.3308,142.22,142.16,20.51551274]
[1768500830366,11.54109193,142.21,142.16,20.51551274]
[1768500830566,12.5908,142.22,142.16,20.47014473]
[1768500830964,109.492895,142.25,142.16,20.47014473]
[1768500830965,11.036895,142.25,142.17,0.04662221]
[1768500831172,16.85556166,142.24,142.17,0.04662221]
[1768500831375,16.85556166,142.23,142.17,0.04662221]
[1768500831575,12.59,142.23,142.17,19.95270519]
[1768500831968,6.3304,142.22,142.19,0.05030501]
[1768500832981,6.26,142.23,142.19,0.05030501]
[1768500834781,12.59,142.23,142.19,0.05030501]
[1768500835572,6.33,142.23,142.19,0.05030501]
[1768500835884,6.3304,142.22,142.16,19.95270519]
[1768500836074,6.37816446,142.22,142.16,19.95270519]
[1768500837685,6.3314,142.2,142.13,6.3342]
[1768500837883,0.04776446,142.22,142.14,19.95270519]
[1768500838081,10.59524727,142.21,142.14,19.95270519]
[1768500838283,6.26,142.23,142.14,19.95270519]
[1768500838484,10.59575889,142.22,142.14,19.95270519]
[1768500838690,0.04926881,142.19,142.14,19.95270519]
[1768500839389,0.04926881,142.19,142.15,26.28610519]
[1768500840483,12.5704,142.22,142.16,19.95270519]
[1768500840787,6.3304,142.22,142.16,19.99791504]
[1768500840992,12.5704,142.22,142.16,19.99791504]
[1768500841180,6.3304,142.22,142.16,19.99791504]
[1768500841689,6.3304,142.22,142.16,26.23791504]
[1768500842888,6.3298,142.24,142.17,19.95270519]
[1768500843191,10.60018668,142.23,142.17,19.95270519]
[1768500843385,6.22,142.25,142.17,19.95270519]
[1768500843686,10.60392828,142.24,142.19,0.04545898]
[1768500843883,10.60392828,142.23,142.19,0.04545898]
[1768500844083,6.22,142.25,142.19,0.04545898]
[1768500844084,0.05021786,142.22,142.19,0.04545898]
[1768500844289,6.22,142.25,142.19,19.99816417]
[1768500844489,10.60778696,142.24,142.2,19.95270519]
[1768500844791,98.4284,142.29,142.2,19.95270519]
[1768500844792,1.17928129,142.29,142.2,19.95270519]
[1768500844986,7.39928129,142.29,142.2,19.95270519]
[1768500845381,137.24385245,142.31,142.23,19.95270519]
[1768500845691,137.24385245,142.31,142.24,19.95270519]
[1768500846489,137.24385245,142.31,142.25,19.95270519]
[1768500846789,137.24385245,142.31,142.26,0.05384504]
[1768500849290,138.73281833,142.31,142.26,0.05384504]
[1768500850987,137.24385245,142.31,142.26,20.00655023]
[1768500851188,117.94269652,142.31,142.27,26.15270519]
[1768500852690,117.94269652,142.31,142.27,32.48080519]
[1768500853691,117.94269652,142.31,142.27,26.13270519]
[1768500855986,117.94269652,142.31,142.26,0.05384504]
[1768500856197,117.94269652,142.31,142.26,6.23384504]
[1768500856597,117.94269652,142.31,142.27,6.3281]
[1768500859198,107.15789652,142.31,142.28,6.3276]
[1768500861995,96.38339652,142.31,142.28,6.3276]
[1768500863000,96.38339652,142.31,142.26,26.33475023]
[1768500863204,96.38339652,142.31,142.27,6.16]
[1768500864803,96.38339652,142.31,142.27,12.4881]
[1768500866303,96.38339652,142.31,142.27,12.4681]
[1768500868902,96.38339652,142.31,142.28,6.3276]
[1768500869905,2.26692369,142.33,142.28,6.3276]
[1768500870795,2.26692369,142.33,142.29,0.04678111]
[1768500874005,6.14,142.35,142.29,6.37398111]
[1768500874214,2.8750586,142.41,142.29,22.1933313]
[1768500874504,2.8750586,142.37,142.29,22.1933313]
[1768500874702,8.9950586,142.36,142.3,6.3264]
[1768500875208,8.9950586,142.36,142.32,0.05007159]
[1768500876207,2.8750586,142.36,142.32,0.05007159]
[1768500876706,2.96273976,142.38,142.32,22.19662178]
[1768500876905,2.96273976,142.38,142.32,0.05007159]
[1768500877405,2.84581569,142.36,142.32,0.05007159]
[1768500878702,6.1,142.37,142.28,28.24655019]
[1768500878902,2.84581569,142.35,142.29,22.14655019]
[1768500879102,2.84581569,142.36,142.3,22.14655019]
[1768500879298,2.84581569,142.36,142.31,6.1]
[1768500879709,2.84581569,142.36,142.31,28.24655019]
[1768500880905,2.84581569,142.37,142.32,0.04583375]
[1768500881106,2.84581569,142.37,142.32,22.19238394]
[1768500881307,2.84581569,142.38,142.32,22.19238394]
[1768500881709,2.84581569,142.38,142.32,28.51828394]
[1768500883109,2.84581569,142.36,142.32,28.51828394]
[1768500884414,2.84581569,142.34,142.26,22.14655019]
[1768500884706,0.04827015,142.35,142.27,22.14655019]
[1768500884707,2.84581569,142.32,142.27,22.14655019]
[1768500885613,2.84581569,142.31,142.27,22.14655019]
[1768500886300,6.3256,142.33,142.27,22.14655019]
[1768500886611,0.04667532,142.3,142.26,6.08]
[1768500887407,0.04667532,142.3,142.26,28.22655019]
[1768500888302,0.04667532,142.3,142.27,22.14655019]
[1768500888903,2.84581569,142.33,142.27,22.14655019]
[1768500888904,8.90581569,142.34,142.27,22.14655019]
[1768500890015,15.23091569,142.34,142.27,28.47465019]
[1768500890716,9.17091569,142.34,142.29,0.04567518]
[1768500891009,6.326,142.32,142.25,21.92960509]
[1768500891216,8.06323321,142.31,142.25,21.92960509]
[1768500891405,8.90581569,142.31,142.25,21.92960509]
[1768500892614,0.04889013,142.29,142.25,21.92960509]
[1768500892919,0.04889013,142.29,142.25,28.25860509]
[1768500893410,0.04889013,142.29,142.26,21.92960509]
[1768500894709,0.04889013,142.29,142.27,6.328]
[1768500895809,2.84581569,142.33,142.27,6.328]
[1768500896218,2.84581569,142.33,142.28,6.3276]
[1768500897512,2.84581569,142.33,142.29,0.0452055]
[1768500899314,98.3611,142.39,142.29,6.3724055]
[1768500899521,2.84581569,142.34,142.29,6.3724055]
[1768500899718,2.84581569,142.34,142.29,6.3272]
[1768500899913,2.84581569,142.35,142.29,6.3272]
[1768500900113,2.84581569,142.35,142.3,6.37985066]
[1768500900417,2.84581569,142.35,142.3,0.05305066]
[1768500900616,2.84581569,142.35,142.3,21.98265575]
[1768500900925,2.84581569,142.36,142.3,0.05305066]
[1768500901115,2.84581569,142.34,142.3,0.05305066]
[1768500901517,2.84581569,142.34,142.29,6.3273]
[1768500901721,6.3242,142.36,142.29,6.3273]
[1768500901915,2.84581569,142.35,142.31,0.04847984]
[1768500902114,8.86581569,142.35,142.31,0.04847984]
[1768500902417,2.84581569,142.35,142.31,0.04847984]
[1768500902921,2.84581569,142.37,142.32,6.3259]
[1768500903311,2.84581569,142.37,142.3,21.92960509]
[1768500903515,2.84581569,142.37,142.3,28.25600509]
[1768500903921,2.84581569,142.37,142.33,0.04669373]
[1768500904422,12.3434,142.38,142.33,0.04669373]
[1768500904624,15.18921569,142.38,142.33,0.04669373]
[1768500904818,6.3238,142.37,142.3,21.92960509]
[1768500905221,8.86581569,142.38,142.29,12.327]
[1768500905416,2.84581569,142.36,142.29,12.327]
[1768500905622,5.21123362,142.35,142.29,12.327]
[1768500905924,2.84581569,142.36,142.29,12.327]
[1768500906224,0.04595162,142.33,142.29,12.327]
[1768500907619,0.04595162,142.33,142.28,21.92960509]
[1768500908420,0.04595162,142.33,142.28,28.25730509]
[1768500909734,2.84581569,142.37,142.29,21.92960509]
[1768500910028,16.47337169,142.36,142.29,21.98081979]
[1768500910220,8.84581569,142.37,142.29,21.98081979]
[1768500910416,5.21256547,142.36,142.29,21.98081979]
[1768500910620,5.21257116,142.35,142.29,21.98081979]
[1768500910924,15.16961569,142.37,142.3,6.3267]
[1768500911221,10.47450119,142.36,142.3,6.3267]
[1768500911422,5.21256879,142.35,142.3,6.3267]
[1768500911725,15.16961569,142.37,142.3,6.3267]
[1768500912029,10.47264114,142.36,142.3,6.3267]
[1768500912232,5.25867665,142.35,142.3,6.3267]
[1768500912431,0.04703861,142.35,142.3,6.3267]
[1768500913429,0.04703861,142.35,142.27,5.98]
[1768500913624,8.05721972,142.34,142.26,21.92960509]
[1768500913828,5.21140403,142.33,142.28,6.3277]
[1768500914132,9.17101569,142.34,142.28,6.3277]
[1768500914336,5.21111039,142.33,142.28,6.3277]
[1768500914542,0.05333553,142.32,142.28,6.3277]
[1768500916042,0.05333553,142.32,142.26,21.92960509]
[1768500916545,0.05333553,142.32,142.25,8.82581569]
[1768500916546,0.00725694,142.32,142.28,21.98065659]
[1768500916745,0.00725694,142.32,142.28,27.96065659]
[1768500919746,0.00725694,142.32,142.28,34.28835659]
[1768500922551,0.00725694,142.32,142.29,28.29352677]
[1768500923345,0.00725694,142.32,142.3,28.29302677]
[1768500923747,6.3237,142.38,142.32,28.29212677]
[1768500923953,6.3228,142.39,142.32,28.29212677]
[1768500924154,10.46987148,142.38,142.32,28.29212677]
[1768500924453,2.84581569,142.39,142.31,34.23262677]
[1768500924656,13.31296405,142.38,142.29,21.96622677]
[1768500924848,10.46714836,142.37,142.29,21.96622677]
[1768500925043,13.31296405,142.36,142.27,29.41480131]
[1768500925248,10.46714836,142.35,142.27,29.41480131]
[1768500925451,5.2073546,142.34,142.27,29.41480131]
[1768500925652,2.84581569,142.36,142.27,29.41480131]
[1768500925953,6.3251,142.34,142.27,35.74270131]
[1768500926252,6.3251,142.34,142.27,5.94]
[1768500926253,5.20656475,142.33,142.27,5.94]
[1768500926446,6.3255,142.33,142.27,5.94]
[1768500927352,0.05080156,142.31,142.28,2.84581569]
[1768500927548,0.00521669,142.31,142.28,26.320617]
[1768500927853,2.84581569,142.38,142.29,23.52017018]
[1768500928044,16.40845311,142.37,142.3,2.84581569]
[1768500928247,10.46845311,142.36,142.3,2.84581569]
[1768500928447,5.20584994,142.35,142.3,2.84581569]
[1768500928649,5.94,142.37,142.3,2.84581569]
[1768500928850,16.7953701,142.36,142.3,2.84581569]
[1768500929144,5.20716413,142.35,142.32,0.04553582]
[1768500929361,6.3245,142.36,142.32,0.04553582]
[1768500929653,5.20768696,142.35,142.32,0.04553582]
[1768500929856,6.3245,142.36,142.32,0.04553582]
[1768500930064,5.20767375,142.35,142.32,0.04553582]
[1768500930354,6.3245,142.36,142.32,0.04553582]
[1768500930554,5.20758501,142.35,142.32,0.04553582]
[1768500930755,6.3245,142.36,142.32,0.04553582]
[1768500932455,6.3237,142.38,142.32,26.36615282]
[1768500932648,98.3389,142.42,142.32,26.36615282]
[1768500932649,16.39431356,142.37,142.32,26.36615282]
[1768500932952,5.92,142.38,142.32,26.320617]
[1768500933155,5.92,142.38,142.32,2.84581569]
[1768500933156,10.47367522,142.37,142.32,2.84581569]
[1768500933357,5.92,142.38,142.33,0.05382751]
[1768500933659,10.4780319,142.37,142.33,0.05382751]
[1768500933858,6.3238,142.37,142.33,0.05382751]
[1768500934053,5.21066044,142.36,142.3,32.240617]
[1768500934353,0.04608437,142.37,142.3,32.240617]
[1768500934559,5.2104905,142.36,142.3,32.240617]
[1768500934858,0.04608437,142.37,142.3,32.240617]
[1768500935057,5.21047729,142.36,142.3,32.240617]
[1768500935257,0.04608437,142.37,142.3,32.240617]
[1768500935459,5.21038142,142.36,142.3,32.240617]
[1768500935658,5.94608437,142.37,142.3,32.240617]
[1768500935855,5.21040026,142.36,142.31,2.84581569]
[1768500936063,10.4765344,142.35,142.27,23.47480131]
[1768500936357,16.37589391,142.34,142.26,8.74581569]
[1768500936558,10.47589391,142.33,142.26,2.84581569]
[1768500936761,5.9,142.34,142.26,2.84581569]
[1768500936955,16.80333671,142.33,142.26,26.320617]
[1768500937156,5.9,142.34,142.28,2.84581569]
[1768500937357,10.47910238,142.33,142.28,2.84581569]
[1768500937559,5.9,142.34,142.28,2.84581569]
[1768500937859,10.48026554,142.33,142.28,2.84581569]
[1768500938059,5.9,142.34,142.27,2.84581569]
[1768500938254,5.21261422,142.33,142.27,2.84581569]
[1768500938457,5.9,142.34,142.27,2.84581569]
[1768500938763,6.326,142.32,142.27,2.84581569]
[1768500938963,0.05157516,142.31,142.27,2.84581569]
[1768500939461,0.05157516,142.31,142.26,27.92240429]
[1768500940058,5.9,142.33,142.26,27.92240429]
[1768500940258,5.9,142.33,142.27,23.5248973]
[1768500940769,6.3255,142.33,142.27,23.5248973]
[1768500941666,6.3255,142.33,142.27,29.8529973]
[1768500942859,5.88,142.37,142.29,23.47480131]
[1768500943060,10.4872769,142.36,142.29,23.47480131]
[1768500943260,5.21526022,142.35,142.29,23.47480131]
[1768500943463,5.88,142.37,142.29,23.47480131]
[1768500943769,10.48833914,142.36,142.31,0.04660922]
[1768500943963,5.88,142.37,142.31,0.04660922]
[1768500944163,10.48941131,142.36,142.31,0.04660922]
[1768500944365,10.48941131,142.35,142.31,0.04660922]
[1768500944558,5.88,142.37,142.31,0.04660922]
[1768500944758,10.49362468,142.36,142.31,0.04660922]
[1768500944959,0.04965335,142.34,142.28,5.88]
[1768500945465,5.92965335,142.34,142.27,29.35480131]
[1768500945867,5.21881901,142.33,142.27,23.47480131]
[1768500946055,5.92965335,142.34,142.27,23.47480131]
[1768500946262,5.21883516,142.33,142.27,23.47480131]
[1768500946457,5.92965335,142.34,142.25,29.35480131]
[1768500946662,6.3264,142.31,142.25,29.35480131]
[1768500947861,6.3264,142.31,142.26,23.47480131]
[1768500948157,6.3259,142.33,142.26,27.92240429]
[1768500948357,5.21908131,142.32,142.26,27.92240429]
[1768500948558,12.1859,142.33,142.26,27.92240429]
[1768500948865,5.21908369,142.32,142.26,27.92240429]
[1768500949070,12.1859,142.33,142.26,27.92240429]
[1768500949768,12.1859,142.33,142.27,23.47480131]
[1768500951160,6.3259,142.33,142.27,23.47480131]
[1768500951364,5.86,142.35,142.28,22.99597375]
[1768500951568,5.21954496,142.34,142.28,22.99597375]
[1768500951868,5.86,142.35,142.28,22.99597375]
[1768500952168,5.21984931,142.34,142.28,22.99597375]
[1768500952369,5.86,142.35,142.28,22.99597375]
[1768500952666,5.23068413,142.34,142.28,22.99597375]
[1768500952865,6.3251,142.34,142.28,22.99597375]
[1768500953366,6.3251,142.34,142.28,28.85597375]
[1768500954558,0.05232336,142.32,142.28,28.85597375]
[1768500957472,6.3251,142.34,142.28,28.85597375]
[1768500957667,6.3251,142.34,142.29,0.0521389]
[1768500959568,6.3245,142.36,142.29,23.04811265]
[1768500959871,10.49936092,142.35,142.29,27.49571563]
[1768500960072,6.3245,142.36,142.29,27.44357673]
[1768500960373,5.23325694,142.35,142.29,27.44357673]
[1768500960576,99.5755556,142.4,142.31,23.04065231]
[1768500960577,6.3237,142.38,142.31,23.04065231]
[1768500960765,10.49978225,142.37,142.31,28.86065231]
[1768500961067,12.1437,142.38,142.31,28.81597375]
[1768500961068,12.18111637,142.38,142.31,28.81597375]
[1768500961274,16.81655466,142.37,142.31,35.14217375]
[1768500961571,0.03741637,142.35,142.28,28.81597375]
[1768500961868,6.3256,142.33,142.28,22.99597375]
[1768500962475,12.145,142.35,142.28,22.99597375]
[1768500962676,10.48905774,142.34,142.28,22.99597375]
[1768500962878,6.3251,142.34,142.28,22.99597375]
[1768500964567,5.82,142.35,142.29,22.99597375]
[1768500965074,6.3242,142.36,142.29,22.99597375]
[1768500965265,10.54816553,142.35,142.26,27.44357673]
[1768500965467,5.28847527,142.34,142.26,27.44357673]
[1768500965776,0.06843377,142.34,142.26,27.44357673]
[1768500966176,6.39363377,142.34,142.27,22.99597375]
[1768500967375,11.01623381,142.33,142.27,22.99597375]
[1768500967574,5.90726051,142.33,142.25,28.81597375]
[1768500967878,0.10726051,142.32,142.25,28.81597375]
[1768500968074,6.43506051,142.28,142.2,22.99597375]
[1768500968276,12.23506051,142.28,142.21,22.99597375]
[1768500968574,5.8,142.28,142.21,22.99597375]
[1768500969373,5.8,142.28,142.2,12.1312]
[1768500969374,6.3267,142.31,142.22,27.44357673]
[1768500969576,5.8,142.3,142.23,5.8]
[1768500969776,5.8,142.3,142.24,22.99597375]
[1768500970474,5.8,142.31,142.26,23.04066632]
[1768500972364,12.1267,142.31,142.26,23.04066632]
[1768500972565,0.24805623,142.3,142.23,22.99597375]
[1768500972776,0.24805623,142.28,142.2,22.99597375]
[1768500973063,5.78,142.27,142.2,28.77597375]
[1768500973780,12.1082,142.27,142.2,28.77597375]
[1768500974272,5.78,142.27,142.2,28.77597375]
[1768500974674,5.78,142.27,142.2,22.99597375]
[1768500975780,6.3288,142.26,142.2,22.99597375]
[1768500976076,5.78,142.27,142.2,22.99597375]
[1768500976267,5.78,142.27,142.22,22.99597375]
[1768500976474,5.78,142.29,142.22,22.99597375]
[1768500977582,6.3272,142.3,142.23,22.99597375]
[1768500977880,5.78,142.31,142.25,22.99597375]
[1768500978078,6.327,142.3,142.25,22.99597375]
[1768500978281,0.35367241,142.3,142.23,5.78]
[1768500978771,6.3279,142.28,142.23,5.78]
[1768500979084,5.76,142.28,142.22,22.99597375]
[1768500979275,6.3282,142.27,142.22,22.99597375]
[1768500979881,6.3287,142.26,142.2,5.76]
[1768500980284,6.3287,142.26,142.2,28.75597375]
[1768500981081,6.15364863,142.25,142.17,28.11315565]
[1768500981474,6.15364863,142.25,142.17,22.35315565]
[1768500981976,6.15364863,142.25,142.16,5.76]
[1768500981977,6.3309,142.21,142.16,5.76]
[1768500982186,6.3309,142.21,142.14,22.35315565]
[1768500982481,6.3309,142.21,142.15,22.35315565]
[1768500982876,5.76,142.22,142.15,22.35315565]
[1768500983681,6.3302,142.23,142.15,22.35315565]
[1768500983882,12.0902,142.23,142.16,22.35315565]
[1768500984584,6.3306,142.22,142.16,22.35315565]
[1768500984776,6.21812993,142.23,142.16,22.35315565]
[1768500985781,4.44760298,142.25,142.16,22.35315565]
[1768500985980,98.98806557,142.26,142.16,22.35315565]
[1768500986182,5.74,142.24,142.16,22.35315565]
[1768500986578,6.3303,142.23,142.16,22.35315565]
[1768500986777,6.3303,142.23,142.17,28.91322192]
[1768500987572,98.98806557,142.26,142.17,28.91322192]
[1768500987573,6.3294,142.25,142.17,28.91322192]
[1768500987778,12.0694,142.25,142.17,28.91322192]
[1768500988778,12.0694,142.25,142.18,23.17322192]
[1768500989185,6.3296,142.24,142.18,23.17322192]
[1768500990178,6.3289,142.26,142.18,23.17322192]
[1768500990379,12.0689,142.26,142.18,23.17322192]
[1768500991185,6.3292,142.25,142.18,23.17322192]
[1768500992287,6.3292,142.25,142.19,28.89322192]
[1768500993791,6.3292,142.25,142.16,23.17322192]
[1768500993792,0.65039066,142.25,142.16,23.17322192]
[1768500993986,0.65039066,142.25,142.17,28.89322192]
[1768500994880,6.3306,142.22,142.17,28.89322192]
[1768500996187,6.41051435,142.23,142.14,23.17322192]
[1768500996490,6.41051435,142.23,142.14,28.89322192]
[1768500997783,6.3309,142.21,142.14,28.89322192]
[1768500998289,6.41051435,142.23,142.14,23.17322192]
[1768500998290,5.72,142.2,142.14,23.17322192]
[1768500998685,0.70356577,142.22,142.14,23.17322192]
[1768500998886,5.7,142.21,142.14,23.17322192]
[1768500999386,6.3314,142.2,142.14,23.17322192]
[1768501002689,9.18268826,142.22,142.15,23.17322192]
[1768501002991,5.7,142.21,142.15,23.17322192]
[1768501003582,14.88268826,142.22,142.15,28.87322192]
[1768501004093,6.331,142.21,142.15,28.87322192]
[1768501004490,8.55188826,142.22,142.15,35.20672192]
[1768501004688,8.55188826,142.22,142.16,23.17322192]
[1768501004889,6.3304,142.22,142.16,23.17322192]
[1768501005190,12.0104,142.22,142.16,23.17322192]
[1768501005386,5.68,142.22,142.16,23.17322192]
[1768501006695,2.85188826,142.2,142.14,5.68]
[1768501007091,2.85188826,142.21,142.14,5.68]
[1768501007491,8.53188826,142.21,142.14,5.68]
[1768501008291,5.68,142.21,142.14,5.68]
[1768501008489,12.10845998,142.22,142.14,5.68]
[1768501008693,5.68,142.21,142.15,23.17322192]
[1768501008894,6.3313,142.2,142.15,23.17322192]
[1768501009795,2.85188826,142.23,142.15,23.17322192]
[1768501010002,5.68,142.22,142.15,23.17322192]
[1768501010692,12.0113,142.21,142.15,23.17322192]
[1768501011291,6.3303,142.23,142.16,22.78090518]
[1768501011491,2.85188826,142.24,142.17,5.66]
[1768501011798,8.51188826,142.24,142.18,22.78090518]
[1768501012092,8.51188826,142.24,142.19,0.04442221]
[1768501012093,5.66,142.24,142.19,0.04442221]
[1768501012396,15.16614829,142.28,142.21,22.78090518]
[1768501012600,5.66,142.27,142.21,22.78090518]
[1768501013288,119.5082,142.33,142.2,5.66]
[1768501013289,2.85188826,142.3,142.23,22.83305273]
[1768501013488,5.66,142.29,142.23,22.83305273]
[1768501013901,0.0482602,142.28,142.23,22.83305273]
[1768501015894,6.3760602,142.28,142.23,22.83305273]
[1768501016295,6.3760602,142.28,142.17,98.5037]
[1768501016296,12.451625,142.22,142.12,22.78090518]
[1768501016502,132.2057,142.27,142.13,22.78090518]
[1768501016503,8.51188826,142.23,142.13,22.78090518]
[1768501016698,2.85188826,142.21,142.13,22.78090518]
[1768501017202,6.3315,142.2,142.13,22.78090518]
[1768501018002,2.85188826,142.21,142.13,22.78090518]
[1768501018202,0.0504508,142.18,142.15,0.05255377]
[1768501018599,0.0504508,142.18,142.13,28.42090518]
[1768501018905,6.3828508,142.18,142.13,28.42090518]
[1768501019396,6.3327,142.17,142.1,22.78090518]
[1768501019596,6.3327,142.17,142.11,28.42090518]
[1768501020208,0.05168116,142.15,142.11,28.42090518]
[1768501021207,6.3327,142.17,142.11,28.42090518]
[1768501022305,6.3327,142.17,142.11,22.78090518]
[1768501022507,6.3327,142.17,142.12,5.64]
[1768501022698,6.3327,142.17,142.11,28.42090518]
[1768501023209,8.55224296,142.17,142.11,28.42090518]
[1768501023396,6.3332,142.16,142.11,22.78090518]
[1768501025302,12.73992381,142.16,142.08,22.78090518]
[1768501025506,2.21954296,142.15,142.08,22.78090518]
[1768501025706,2.21954296,142.15,142.09,5.62]
[1768501026316,6.3341,142.14,142.09,5.62]
[1768501027011,6.3346,142.13,142.08,22.78090518]
[1768501027307,6.3346,142.13,142.08,28.40090518]
[1768501028712,6.335,142.12,142.08,28.40090518]
[1768501029112,111.25862381,142.16,142.08,28.40090518]
[1768501029314,104.1314,142.17,142.08,7.83954296]
[1768501029315,106.35094296,142.17,142.08,7.83954296]
[1768501029514,7.83954296,142.17,142.09,22.78090518]
[1768501029816,113.59551788,142.16,142.09,11.51490518]
[1768501030021,2.21954296,142.15,142.09,11.51490518]
[1768501030613,111.37597492,142.16,142.09,11.51490518]
[1768501030816,6.37933132,142.13,142.09,11.51490518]
[1768501031516,6.37933132,142.13,142.09,0.67230518]
[1768501032622,6.37933132,142.13,142.09,5.18e-06]
[1768501033713,0.04473132,142.13,142.09,5.18e-06]
[1768501034618,5.6,142.18,142.1,22.78090518]
[1768501034810,98.4753,142.22,142.12,25.00044814]
[1768501034811,5.6,142.2,142.12,25.00044814]
[1768501035012,31.12027372,142.22,142.12,25.00044814]
[1768501035809,6.3315,142.2,142.12,31.33504814]
[1768501036009,6.3315,142.2,142.13,22.78090518]
[1768501036211,6.3315,142.2,142.14,5.6]
[1768501036509,6.3318,142.19,142.14,5.6]
[1768501037018,6.3318,142.19,142.13,22.78090518]
[1768501037313,6.3318,142.19,142.14,5.6]
[1768501038116,23.30073076,142.21,142.13,22.78090518]
[1768501038310,23.30073076,142.21,142.14,5.58]
[1768501039117,23.30073076,142.21,142.14,28.36090518]
[1768501039820,6.3314,142.2,142.14,28.36090518]
[1768501041616,8.55094296,142.2,142.14,28.36090518]
[1768501042008,6.3318,142.19,142.14,5.58]
[1768501044123,6.3318,142.19,142.12,31.35318864]
[1768501044324,6.3318,142.19,142.14,5.56]
[1768501044723,7.81954296,142.22,142.14,30.57848864]